bitfinex-derivatives/quotes_BTCF0:USTF0_20250922
["timestamp","ask_amount","ask_price","bid_price","bid_amount"]
[1758533510592,1.80831697,112370.0,112360.0,0.00824668]
[1758533512102,0.98715697,112370.0,112360.0,0.00824668]
[1758533512301,0.98715697,112370.0,112360.0,0.00724668]
[1758533512302,1.80835697,112370.0,112360.0,0.00724668]
[1758533512502,1.80935697,112370.0,112360.0,0.00724668]
[1758533512803,0.98815697,112370.0,112360.0,0.00724668]
[1758533513001,1.80931697,112370.0,112360.0,0.00724668]
[1758533513302,1.81031697,112370.0,112360.0,0.00724668]
[1758533514498,1.12401381,112370.0,112360.0,0.00724668]
[1758533514699,1.43207602,112370.0,112360.0,0.00724668]
[1758533515095,2.25323602,112370.0,112360.0,0.00724668]
[1758533515802,1.94517381,112370.0,112360.0,0.00724668]
[1758533516003,1.12401381,112370.0,112360.0,0.00724668]
[1758533516204,1.94517381,112370.0,112360.0,0.00724668]
[1758533516905,2.25323602,112370.0,112360.0,0.00724668]
[1758533517108,1.94417381,112370.0,112360.0,0.00724668]
[1758533517294,1.94617381,112370.0,112360.0,0.00724668]
[1758533517706,1.12801381,112370.0,112360.0,0.00724668]
[1758533518004,1.94913381,112370.0,112360.0,0.00724668]
[1758533518202,0.8199516,112370.0,112360.0,0.00724668]
[1758533518398,1.12801381,112370.0,112360.0,0.02897668]
[1758533518594,1.94913381,112370.0,112360.0,0.00724668]
[1758533518999,1.94913381,112370.0,112360.0,0.02897668]
[1758533519199,1.12801381,112370.0,112360.0,0.11789818]
[1758533519495,2.08276902,112370.0,112360.0,0.02001668]
[1758533519701,2.08276902,112370.0,112360.0,0.00724668]
[1758533519702,2.09000902,112370.0,112360.0,0.00724668]
[1758533520408,0.0889215,112360.0,112350.0,4e-05]
[1758533520602,1.44391087,112360.0,112350.0,4e-05]
[1758533520806,1.58478608,112360.0,112350.0,4e-05]
[1758533520998,1.27672387,112360.0,112350.0,0.03494]
[1758533521203,1.27672387,112360.0,112350.0,0.1238694]
[1758533521503,2.09784387,112360.0,112350.0,0.1238694]
[1758533522006,2.09884387,112360.0,112350.0,0.1238694]
[1758533522208,1.27772387,112360.0,112350.0,0.03494]
[1758533522408,2.09880387,112360.0,112350.0,0.1238694]
[1758533522607,2.09880387,112360.0,112350.0,0.03494]
[1758533523305,0.66159945,112360.0,112350.0,0.1238694]
[1758533523509,2.09884387,112360.0,112350.0,0.3738694]
[1758533524610,1.18880237,112360.0,112350.0,0.3738694]
[1758533524806,2.00992237,112360.0,112350.0,0.3738694]
[1758533525110,2.09884367,112360.0,112350.0,0.3738694]
[1758533525407,2.09884367,112360.0,112350.0,0.28494]
[1758533525812,2.09884367,112360.0,112350.0,0.28454]
[1758533526105,2.40690588,112360.0,112350.0,0.00044]
[1758533526310,2.40690588,112360.0,112350.0,4e-05]
[1758533526620,1.79078146,112360.0,112350.0,0.0893694]
[1758533526808,2.09884367,112360.0,112350.0,4e-05]
[1758533527112,2.09880367,112360.0,112350.0,0.1238694]
[1758533527506,2.10080367,112360.0,112350.0,0.1238694]
[1758533527704,2.10380367,112360.0,112350.0,0.1238694]
[1758533530104,2.10380367,112360.0,112340.0,0.00084]
[1758533530105,0.0980792,112350.0,112340.0,0.00084]
[1758533530310,0.1107671,112340.0,112330.0,4e-05]
[1758533530505,0.1180153,112330.0,112320.0,0.00084]
[1758533530706,0.50613139,112330.0,112320.0,4e-05]
[1758533531006,1.26313102,112330.0,112320.0,0.00044]
[1758533531206,0.6397666,112330.0,112320.0,0.1234932]
[1758533531402,1.69608351,112330.0,112320.0,0.3734932]
[1758533531607,1.25589102,112330.0,112320.0,0.3738932]
[1758533531805,2.00694572,112330.0,112320.0,0.3738932]
[1758533532007,0.1681913,112330.0,112320.0,0.68195541]
[1758533532208,0.166485,112330.0,112320.0,1.35081762]
[1758533532407,0.14087521,112330.0,112320.0,1.35081762]
[1758533532713,0.14087521,112330.0,112320.0,1.21597752]
[1758533532913,0.14087521,112330.0,112320.0,0.7346932]
[1758533533808,0.14087521,112330.0,112320.0,0.4846932]
[1758533534210,0.14087521,112330.0,112320.0,0.56461238]
[1758533535408,0.16227521,112330.0,112320.0,0.56461238]
[1758533535613,0.16227521,112330.0,112320.0,0.81461238]
[1758533535810,0.16227521,112330.0,112320.0,0.4846932]
[1758533536013,0.52307521,112330.0,112320.0,0.1238932]
[1758533536213,0.52307521,112330.0,112320.0,0.1234932]
[1758533536413,1.00247521,112330.0,112320.0,0.1238932]
[1758533536914,1.45222051,112330.0,112320.0,0.1238932]
[1758533537322,1.45222051,112330.0,112320.0,0.01321]
[1758533537323,1.93350483,112330.0,112320.0,0.01321]
[1758533537813,1.93350483,112330.0,112320.0,0.01281]
[1758533538015,1.93350483,112330.0,112320.0,0.03606]
[1758533538315,2.00488715,112330.0,112320.0,0.03606]
[1758533538912,2.25488715,112330.0,112320.0,0.01321]
[1758533539114,2.25488715,112330.0,112320.0,0.1021229]
[1758533539315,1.77360283,112330.0,112320.0,0.1249729]
[1758533539514,2.25488715,112330.0,112320.0,0.1249729]
[1758533540113,1.68465753,112330.0,112320.0,0.1249729]
[1758533540312,2.25488685,112330.0,112320.0,0.1249729]
[1758533540613,0.98391521,112330.0,112320.0,0.3749729]
[1758533540820,0.98399521,112330.0,112320.0,0.3749729]
[1758533541314,0.14087521,112330.0,112320.0,1.31705722]
[1758533543109,0.14087521,112330.0,112320.0,0.8357729]
[1758533543317,0.14087521,112330.0,112320.0,0.7427729]
[1758533545421,1.25402953,112330.0,112320.0,0.04302]
[1758533545719,1.62302521,112330.0,112320.0,0.1315738]
[1758533545917,0.52274521,112330.0,112320.0,0.1319738]
[1758533546213,1.37290521,112330.0,112320.0,0.1319738]
[1758533546418,1.46185101,112330.0,112320.0,0.1319738]
[1758533546620,1.94313533,112330.0,112320.0,0.1299738]
[1758533546918,1.94313533,112330.0,112320.0,0.1249738]
[1758533547115,1.94313533,112330.0,112320.0,0.1269738]
[1758533547512,1.46185101,112330.0,112320.0,0.1269738]
[1758533549516,2.19313533,112330.0,112320.0,0.1269738]
[1758533549718,2.19313533,112330.0,112320.0,0.01517]
[1758533549920,2.20037533,112330.0,112320.0,0.0024]
[1758533550215,2.20037533,112330.0,112320.0,0.002]
[1758533550425,2.20037533,112330.0,112320.0,0.0024]
[1758533550616,1.34297533,112330.0,112320.0,0.002]
[1758533550815,1.34297533,112330.0,112320.0,0.03867]
[1758533550816,1.46369101,112330.0,112320.0,0.03867]
[1758533551015,1.46369101,112330.0,112320.0,0.03827]
[1758533551220,0.52274521,112330.0,112320.0,0.1276238]
[1758533551519,0.14087521,112330.0,112320.0,1.2996273]
[1758533551724,0.14087521,112330.0,112320.0,0.7384238]
[1758533551923,0.14087521,112330.0,112320.0,1.33120728]
[1758533552326,0.14087521,112330.0,112320.0,0.84992296]
[1758533552825,0.14087521,112330.0,112320.0,0.7384238]
[1758533553127,0.14087521,112330.0,112320.0,0.81828842]
[1758533553323,0.14087521,112330.0,112320.0,1.21970812]
[1758533553622,0.14087521,112330.0,112320.0,1.31970812]
[1758533553821,0.14087521,112330.0,112320.0,1.39957568]
[1758533554129,0.14087521,112330.0,112320.0,2.25129568]
[1758533554130,0.14083521,112330.0,112320.0,2.25129568]
[1758533555125,0.95186737,112360.0,112350.0,0.125199]
[1758533555126,0.49164775,112360.0,112350.0,0.125199]
[1758533555324,1.34308775,112360.0,112350.0,0.125199]
[1758533555722,0.02085665,112360.0,112350.0,0.125199]
[1758533556024,0.02085665,112360.0,112350.0,0.20506656]
[1758533556422,0.03385665,112360.0,112350.0,0.20506656]
[1758533556618,0.03385665,112360.0,112350.0,1.04715088]
[1758533556817,0.03385665,112360.0,112350.0,1.31728332]
[1758533557019,0.03385665,112360.0,112350.0,1.42878248]
[1758533557321,0.02985665,112360.0,112350.0,2.28006248]
[1758533557721,0.02985665,112360.0,112350.0,2.18006248]
[1758533558317,0.02085665,112360.0,112350.0,2.17998248]
[1758533558521,0.02085665,112360.0,112350.0,2.18198248]
[1758533558821,0.02085665,112360.0,112350.0,2.28198248]
[1758533559324,0.02085665,112360.0,112350.0,2.03198248]
[1758533559525,0.02085665,112360.0,112350.0,2.03158248]
[1758533559921,0.61213227,112360.0,112350.0,0.14976916]
[1758533560118,1.22293227,112360.0,112350.0,0.14976916]
[1758533560323,1.22293227,112360.0,112350.0,0.1271992]
[1758533560526,0.74164795,112360.0,112350.0,0.1271992]
[1758533560724,0.74164795,112360.0,112350.0,0.1275992]
[1758533561730,1.22293227,112360.0,112350.0,0.1255992]
[1758533561926,1.22793227,112360.0,112350.0,0.03667]
[1758533562730,0.74664795,112360.0,112350.0,0.03667]
[1758533563030,0.74964795,112360.0,112350.0,0.125599]
[1758533564722,0.008,112360.0,112350.0,1.16659771]
[1758533565123,0.008,112360.0,112350.0,0.81611684]
[1758533565728,0.005,112360.0,112350.0,0.81611684]
[1758533565929,0.003,112360.0,112350.0,0.56611684]
[1758533566123,0.003,112360.0,112350.0,0.20531684]
[1758533566335,0.003,112360.0,112350.0,0.56571684]
[1758533566530,0.001,112360.0,112350.0,0.66811684]
[1758533566832,0.85296,112370.0,112360.0,0.125191]
[1758533567135,1.3237431,112370.0,112360.0,0.125191]
[1758533568225,1.3257431,112370.0,112360.0,0.125191]
[1758533568425,1.3267431,112370.0,112360.0,0.125191]
[1758533569026,1.23771,112370.0,112360.0,0.125191]
[1758533570234,1.3266232,112370.0,112360.0,0.1251911]
[1758533570432,1.3266232,112370.0,112360.0,0.1255911]
[1758533570834,2.00682191,112370.0,112360.0,0.03667]
[1758533571238,2.00682191,112370.0,112360.0,0.1251912]
[1758533571539,1.5766232,112370.0,112360.0,0.1255912]
[1758533572827,1.5766232,112370.0,112350.0,0.01377]
[1758533573030,0.91013981,112360.0,112350.0,0.0008]
[1758533573230,0.0889369,112340.0,112330.0,0.01297]
[1758533573437,0.1100148,112330.0,112320.0,0.03627]
[1758533573627,0.4708148,112330.0,112320.0,0.03627]
[1758533574030,0.4708148,112330.0,112320.0,0.03667]
[1758533574435,0.4688148,112330.0,112320.0,0.03667]
[1758533575030,0.4688148,112330.0,112320.0,0.1386227]
[1758533575031,0.4698148,112330.0,112320.0,0.1386227]
[1758533575335,0.4698148,112330.0,112320.0,0.1436227]
[1758533575537,0.4688148,112330.0,112320.0,0.1326227]
[1758533575945,0.02213,112340.0,112330.0,0.1241548]
[1758533576242,0.111059,112350.0,112340.0,0.1241469]
[1758533576435,0.110959,112350.0,112340.0,0.1241469]
[1758533576635,0.02203,112350.0,112340.0,0.1241469]
[1758533577241,0.38283,112350.0,112340.0,0.1241469]
[1758533577945,0.1110512,112360.0,112350.0,0.124139]
[1758533578147,0.02203,112360.0,112350.0,0.124139]
[1758533578348,0.82672,112360.0,112350.0,0.124139]
[1758533579250,0.9376711,112360.0,112350.0,0.124139]
[1758533579950,0.84875,112360.0,112350.0,0.124139]
[1758533580451,0.84875,112360.0,112350.0,0.224139]
[1758533580651,0.9376711,112360.0,112350.0,0.125139]
[1758533581151,0.9376711,112360.0,112350.0,0.124139]
[1758533581341,0.85275,112360.0,112350.0,0.124139]
[1758533581544,0.9416711,112360.0,112350.0,0.124139]
[1758533581746,1.3024711,112360.0,112350.0,0.124139]
[1758533582150,0.38683,112360.0,112350.0,0.124139]
[1758533582454,0.004,112360.0,112350.0,0.484939]
[1758533582648,0.02603,112360.0,112350.0,0.014]
[1758533582853,0.1239291,112350.0,112340.0,0.0001]
[1758533583053,0.1239291,112350.0,112330.0,0.1030424]
[1758533583054,1.76596781,112350.0,112330.0,0.1030424]
[1758533583256,0.38283,112340.0,112330.0,0.1242524]
[1758533583558,0.4717671,112340.0,112330.0,0.1245524]
[1758533584149,0.4717671,112340.0,112330.0,0.1244324]
[1758533584346,0.4717671,112340.0,112330.0,0.1284324]
[1758533584550,0.4717671,112340.0,112330.0,0.03949]
[1758533585558,0.4747671,112340.0,112330.0,0.03549]
[1758533585957,0.4747671,112340.0,112330.0,0.03749]
[1758533587657,0.4757671,112340.0,112330.0,0.03549]
[1758533588158,1.16523581,112340.0,112330.0,0.0004]
[1758533588856,1.16523581,112340.0,112320.0,0.0001]
[1758533588857,0.1109744,112330.0,112320.0,0.0001]
[1758533589157,1.75189311,112330.0,112320.0,0.0008]
[1758533590755,1.75189311,112330.0,112320.0,0.0018]
[1758533591753,2.00189311,112330.0,112320.0,0.0018]
[1758533592153,2.00189311,112330.0,112320.0,0.001]
[1758533592460,0.1180923,112320.0,112310.0,0.0008001]
[1758533592665,0.90909101,112320.0,112310.0,0.0008001]
[1758533592963,1.3204523,112320.0,112310.0,0.0361201]
[1758533593356,1.75065101,112320.0,112310.0,0.0361201]
[1758533593558,1.75065101,112320.0,112310.0,0.0004001]
[1758533593858,1.75065101,112320.0,112310.0,1e-07]
[1758533594361,1.75065101,112320.0,112310.0,0.0004001]
[1758533594559,1.75065101,112320.0,112310.0,1e-07]
[1758533594756,1.3212123,112320.0,112310.0,0.0361201]
[1758533599063,1.3212123,112320.0,112310.0,0.0360401]
[1758533599457,1.3212123,112320.0,112310.0,0.0004]
[1758533599458,1.75141101,112320.0,112310.0,0.0004]
[1758533599864,0.08896,112310.0,112300.0,1.02548993]
[1758533600064,0.87995871,112310.0,112300.0,1.02548993]
[1758533600363,1.13647871,112310.0,112300.0,1.02628993]
[1758533600565,0.08896,112310.0,112300.0,1.02548993]
[1758533600871,1.3221771,112320.0,112310.0,0.12468]
[1758533601367,0.0889521,112320.0,112310.0,0.37468]
[1758533601868,0.1108521,112320.0,112310.0,0.37468]
[1758533604570,0.1108521,112320.0,112310.0,0.28572]
[1758533604767,0.0219,112320.0,112310.0,0.3746799]
[1758533604971,1.32077039,112330.0,112320.0,0.01307]
[1758533605269,1.34385039,112330.0,112320.0,0.03512]
[1758533606660,0.13269039,112330.0,112320.0,0.39592]
[1758533606864,0.13569039,112330.0,112320.0,0.39592]
[1758533607064,0.13669039,112330.0,112320.0,0.39592]
[1758533607972,0.49749039,112330.0,112320.0,0.03512]
[1758533611373,0.1160312,112330.0,112320.0,0.03512]
[1758533612777,0.004,112330.0,112320.0,2.11242991]
[1758533612976,0.0929433,112330.0,112320.0,2.02335871]
[1758533613179,0.0929433,112330.0,112320.0,0.74592]
[1758533613777,0.003,112330.0,112320.0,0.74592]
[1758533614083,0.0889433,112330.0,112320.0,1.5928]
[1758533614380,0.472781,112340.0,112330.0,0.03512]
[1758533616872,0.473781,112340.0,112330.0,0.03512]
[1758533617073,0.476781,112340.0,112330.0,0.03516]
[1758533628586,0.76175053,112340.0,112330.0,0.34320953]
[1758533629187,0.78479053,112340.0,112330.0,0.34320953]
[1758533629378,0.0001,112350.0,112340.0,0.0889354]
[1758533629580,0.3608,112380.0,112370.0,0.1240317]
[1758533629581,0.02308,112380.0,112370.0,0.1240317]
[1758533629788,0.31731953,112400.0,112390.0,0.01307]
[1758533629982,1.27220783,112400.0,112390.0,0.70396953]
[1758533630182,0.9641583,112400.0,112390.0,0.79286543]
[1758533630383,0.9641583,112400.0,112390.0,0.70396953]
[1758533630584,0.03235,112400.0,112390.0,0.4848159]
[1758533630888,0.87511,112400.0,112390.0,0.4848159]
[1758533631593,0.963998,112400.0,112390.0,0.4848159]
[1758533631793,0.977998,112400.0,112390.0,0.39692]
[1758533632392,0.977878,112400.0,112390.0,0.39692]
[1758533632892,0.983878,112400.0,112390.0,0.39792]
[1758533633388,0.983878,112400.0,112390.0,0.4868158]
[1758533634492,0.983878,112400.0,112390.0,0.96763552]
[1758533634493,0.04308,112400.0,112390.0,0.96763552]
[1758533634695,0.02,112400.0,112390.0,1.32843552]
[1758533634994,0.02,112400.0,112390.0,1.57843552]
[1758533635481,0.014,112400.0,112390.0,1.57643552]
[1758533635690,0.020671,112410.0,112400.0,0.1239375]
[1758533635889,0.020671,112410.0,112400.0,0.96555722]
[1758533636286,0.1440903,112410.0,112400.0,0.02123]
[1758533636895,0.1450903,112410.0,112400.0,0.02163]
[1758533637600,0.1480903,112410.0,112400.0,0.02163]
[1758533637992,0.1480903,112410.0,112400.0,0.1105158]
[1758533638698,0.059211,112410.0,112400.0,0.1105158]
[1758533638894,0.059211,112410.0,112400.0,0.59133552]
[1758533639592,0.045941,112410.0,112400.0,1.06595552]
[1758533639793,0.024671,112410.0,112400.0,1.06595552]
[1758533640192,0.004,112410.0,112400.0,1.33409421]
[1758533640388,0.004,112410.0,112400.0,1.81491393]
[1758533640601,0.98303802,112440.0,112430.0,0.48081972]
[1758533640799,0.02127,112440.0,112430.0,0.87666972]
[1758533641000,0.02127,112440.0,112430.0,0.02123]
[1758533641001,0.1233922,112440.0,112430.0,0.02123]
[1758533641299,0.1233922,112440.0,112430.0,0.38203]
[1758533641598,0.1233922,112440.0,112430.0,0.4708901]
[1758533641799,0.02727,112440.0,112430.0,0.96652982]
[1758533642204,0.04027,112440.0,112430.0,0.96752982]
[1758533642402,0.1291224,112440.0,112430.0,0.96752982]
[1758533643307,0.7531924,112440.0,112430.0,0.02323]
[1758533644202,0.7529124,112440.0,112430.0,0.02323]
[1758533644400,0.7529124,112440.0,112430.0,0.02363]
[1758533645205,0.3921124,112440.0,112430.0,0.02363]
[1758533645697,0.3921124,112440.0,112430.0,0.1124903]
[1758533646606,0.30326,112440.0,112430.0,0.96793002]
[1758533646798,0.03999,112440.0,112430.0,0.96793002]
[1758533647305,0.1288425,112440.0,112430.0,0.96793002]
[1758533648502,0.019,112440.0,112430.0,1.31793002]
[1758533649601,0.1291225,112440.0,112430.0,0.4871103]
[1758533649805,0.1423925,112440.0,112430.0,1.3241503]
[1758533650001,0.1423925,112440.0,112430.0,1.80537002]
[1758533650506,0.1291225,112440.0,112430.0,1.80537002]
[1758533651398,0.04027,112440.0,112430.0,3.30537002]
[1758533651795,0.019,112440.0,112430.0,3.30537002]
[1758533651995,0.019,112440.0,112430.0,3.55537002]
[1758533652192,0.0001,112450.0,112440.0,0.1256525]
[1758533652399,0.0889371,112460.0,112450.0,0.1256446]
[1758533652608,0.0888371,112460.0,112450.0,1.80402432]
[1758533653405,0.14391595,112470.0,112460.0,0.1256367]
[1758533653603,0.14381595,112470.0,112460.0,0.60645642]
[1758533654210,0.14381595,112470.0,112460.0,0.51761972]
[1758533654597,0.0136,112510.0,112480.0,0.125621]
[1758533654798,0.02106,112510.0,112500.0,0.60642492]
[1758533655001,0.1098573,112510.0,112500.0,1.71477972]
[1758533655403,0.1098573,112510.0,112500.0,1.71521972]
[1758533655604,0.1234652,112500.0,112490.0,0.38376]
[1758533655811,0.1234652,112500.0,112480.0,1.21158]
[1758533655812,0.1024131,112490.0,112480.0,1.19854]
[1758533656000,0.1024131,112490.0,112480.0,1.19844]
[1758533656205,0.1234731,112490.0,112480.0,1.70119972]
[1758533656509,0.1234731,112490.0,112480.0,1.71553972]
[1758533656803,0.1234731,112490.0,112480.0,1.80436082]
[1758533657106,0.1098653,112500.0,112490.0,0.1256132]
[1758533657301,0.1068653,112500.0,112490.0,0.96723292]
[1758533657503,0.1068653,112500.0,112490.0,1.80375292]
[1758533657710,0.1068653,112500.0,112490.0,1.3228132]
[1758533657914,0.1068653,112500.0,112490.0,1.80363292]
[1758533658113,0.1068653,112500.0,112490.0,1.90363292]
[1758533658408,0.1068653,112500.0,112490.0,1.90963292]
[1758533658911,0.01906,112500.0,112490.0,1.90963292]
[1758533659213,0.01906,112500.0,112490.0,1.90959292]
[1758533659214,0.1078256,112500.0,112490.0,1.90959292]
[1758533659707,0.01902,112500.0,112490.0,1.90959292]
[1758533659905,0.001,112500.0,112490.0,1.90959292]
[1758533660406,0.001,112500.0,112490.0,1.90911292]
[1758533660711,0.0898058,112500.0,112490.0,1.07323292]
[1758533660898,0.0898058,112500.0,112490.0,1.92684515]
[1758533661101,0.001,112500.0,112490.0,2.17684515]
[1758533661608,0.001,112500.0,112490.0,2.17692515]
[1758533661908,0.001,112500.0,112490.0,1.34140515]
[1758533662207,0.001,112500.0,112490.0,2.17664515]
[1758533662405,0.001,112500.0,112490.0,2.17652515]
[1758533663112,0.001,112500.0,112490.0,2.17648515]
[1758533663309,0.1108657,112500.0,112490.0,0.52177223]
[1758533663507,0.1108657,112500.0,112490.0,1.44586583]
[1758533663710,0.1108657,112500.0,112490.0,1.92668555]
[1758533664014,0.1108657,112500.0,112490.0,1.92708555]
[1758533664814,0.1108657,112500.0,112490.0,1.92672555]
[1758533665216,0.1108657,112500.0,112490.0,1.09180555]
[1758533665409,0.1108657,112500.0,112490.0,1.92672555]
[1758533667420,0.001,112500.0,112490.0,2.44062555]
[1758533667714,0.0004,112510.0,112490.0,2.44062555]
[1758533667715,0.0004,112510.0,112500.0,0.1227053]
[1758533667905,0.0004,112510.0,112500.0,0.96432502]
[1758533668307,0.1023867,112530.0,112520.0,0.1100696]
[1758533668308,0.1254467,112530.0,112520.0,0.1100696]
[1758533668511,0.1262467,112530.0,112520.0,0.1100696]
[1758533669607,0.02386,112530.0,112520.0,1.06430932]
[1758533670515,0.1186419,112530.0,112520.0,1.06430932]
[1758533670917,0.1186419,112530.0,112520.0,1.06630932]
[1758533671112,0.1126419,112530.0,112520.0,0.97751972]
[1758533671310,0.1146419,112530.0,112520.0,0.97751972]
[1758533671511,0.1146419,112530.0,112520.0,0.4967]
[1758533672219,0.1146419,112530.0,112520.0,0.5854898]
[1758533673622,0.02586,112530.0,112520.0,1.06630952]
[1758533673814,0.02506,112530.0,112520.0,1.06630952]
[1758533674010,0.02546,112530.0,112520.0,1.06630952]
[1758533674520,0.02546,112530.0,112520.0,0.5854898]
[1758533674914,0.02546,112530.0,112520.0,1.06630952]
[1758533677215,0.02506,112530.0,112520.0,1.06630952]
[1758533677512,0.02546,112530.0,112520.0,1.80218952]
[1758533678417,0.02506,112530.0,112520.0,1.90218952]
[1758533678622,0.002,112530.0,112520.0,1.90218952]
[1758533679124,0.0211999,112530.0,112520.0,1.90968417]
[1758533680324,0.0211999,112530.0,112520.0,1.90972417]
[1758533680528,0.0211999,112530.0,112520.0,2.15972417]
[1758533680726,0.0207999,112530.0,112520.0,2.15972417]
[1758533680928,0.0211999,112530.0,112520.0,2.15972417]
[1758533681328,0.0207999,112530.0,112520.0,2.15972417]
[1758533681534,0.0211999,112530.0,112520.0,2.15836417]
[1758533681720,0.0211999,112530.0,112520.0,1.32384417]
[1758533681916,0.0211999,112530.0,112520.0,1.42722445]
[1758533682321,0.0211999,112530.0,112520.0,1.90844417]
[1758533682521,0.0211999,112530.0,112520.0,1.07424417]
[1758533682824,0.0211999,112530.0,112520.0,1.90844417]
[1758533683128,0.1099821,112530.0,112520.0,1.97892306]
[1758533683329,0.0211999,112530.0,112520.0,1.97852306]
[1758533683532,0.0211999,112530.0,112520.0,1.97892306]
[1758533684714,0.0211999,112530.0,112520.0,2.11191048]
[1758533685223,0.1099821,112530.0,112520.0,0.59342445]
[1758533685525,0.70256567,112530.0,112520.0,0.33811822]
[1758533685722,0.70256567,112530.0,112520.0,0.00953465]
[1758533686028,0.72716787,112530.0,112520.0,0.00993465]
[1758533686622,0.4202643,112530.0,112520.0,0.00993465]
[1758533686923,0.4202643,112530.0,112520.0,0.03121465]
[1758533687430,0.8296388,112530.0,112520.0,0.03121465]
[1758533687929,0.4202643,112530.0,112520.0,0.03121465]
[1758533688129,0.8296388,112530.0,112520.0,0.03121465]
[1758533688628,0.0458021,112530.0,112520.0,1.7566173]
[1758533688830,0.0207999,112530.0,112520.0,1.7566173]
[1758533689026,0.0211999,112530.0,112520.0,1.32782495]
[1758533689429,0.0211999,112530.0,112520.0,1.32802495]
[1758533689930,0.0442599,112530.0,112520.0,0.49342495]
[1758533690129,0.0442599,112530.0,112520.0,1.32770495]
[1758533690631,0.0442599,112530.0,112520.0,1.42770495]
[1758533690823,0.42028623,112530.0,112520.0,0.03121465]
[1758533691317,0.42028623,112530.0,112520.0,0.03081465]
[1758533691522,0.42028623,112530.0,112520.0,0.03121465]
[1758533693821,0.42028623,112530.0,112520.0,0.00993465]
[1758533694026,0.78108623,112530.0,112520.0,0.00993465]
[1758533694227,0.78108623,112530.0,112520.0,0.00953465]
[1758533694735,1.20987858,112530.0,112520.0,0.00993465]
[1758533694922,1.20987858,112530.0,112520.0,0.00953465]
[1758533695127,1.20987858,112530.0,112520.0,0.00993465]
[1758533695326,1.20987858,112530.0,112520.0,0.00953465]
[1758533695527,1.20987858,112530.0,112520.0,0.00993465]
[1758533697336,1.20987858,112530.0,112520.0,0.00953465]
[1758533697533,1.20987858,112530.0,112520.0,0.00993465]
[1758533697840,1.20987858,112530.0,112520.0,0.00953465]
[1758533698140,1.20987858,112530.0,112520.0,0.00993465]
[1758533698741,1.20987858,112530.0,112520.0,0.00953465]
[1758533698940,1.20987858,112530.0,112520.0,0.00993465]
[1758533700241,0.01334,112510.0,112500.0,4e-05]
[1758533700541,0.1248195,112500.0,112490.0,0.01817223]
[1758533700744,0.4856195,112500.0,112490.0,0.01817223]
[1758533701337,0.4856195,112500.0,112490.0,0.01857223]
[1758533701539,0.4826195,112500.0,112490.0,0.01857223]
[1758533701740,0.4826195,112500.0,112490.0,0.04097223]
[1758533702045,0.4826195,112500.0,112490.0,0.01857223]
[1758533702542,0.91141185,112500.0,112490.0,0.01857223]
[1758533702740,0.91141185,112500.0,112490.0,0.01817223]
[1758533702946,0.91141185,112500.0,112490.0,0.01857223]
[1758533703147,0.91141185,112500.0,112490.0,0.02057223]
[1758533703441,1.16141185,112500.0,112490.0,0.02457223]
[1758533703748,1.16141185,112500.0,112490.0,0.006]
[1758533703937,1.16141185,112500.0,112490.0,0.0064]
[1758533704339,0.1248353,112480.0,112470.0,0.0008]
[1758533704550,1.27522765,112480.0,112470.0,0.0008]
[1758533704736,0.1248511,112460.0,112450.0,0.08620674]
[1758533704940,0.4856511,112460.0,112450.0,4e-05]
[1758533705340,0.91444345,112460.0,112450.0,0.00084]
[1758533705540,0.91044345,112460.0,112450.0,4e-05]
[1758533706040,0.91044345,112460.0,112450.0,0.00044]
[1758533706247,0.91044345,112460.0,112450.0,4e-05]
[1758533706449,0.4736511,112460.0,112450.0,0.00744]
[1758533706645,0.4736511,112460.0,112450.0,0.00704]
[1758533706946,0.4736511,112460.0,112450.0,0.01144]
[1758533707339,0.4736511,112460.0,112450.0,0.3726891]
[1758533707340,0.1128511,112460.0,112450.0,0.3726891]
[1758533707843,0.02367,112460.0,112450.0,0.7462991]
[1758533708242,0.001,112460.0,112450.0,0.7462991]
[1758533708549,0.1258512,112460.0,112450.0,0.7462991]
[1758533708744,0.1248512,112460.0,112450.0,0.7402991]
[1758533708945,0.02267,112460.0,112450.0,0.7402991]
[1758533709255,0.02267,112460.0,112450.0,0.8402991]
[1758533709648,0.1115112,112460.0,112450.0,0.8402991]
[1758533711050,0.1115112,112460.0,112450.0,0.7402991]
[1758533713051,0.1247112,112460.0,112450.0,0.65145]
[1758533713346,0.4855112,112460.0,112450.0,0.02683]
[1758533713547,0.4855112,112460.0,112450.0,0.02723]
[1758533714046,0.4855112,112460.0,112450.0,0.00544]
[1758533714244,0.4855112,112460.0,112450.0,0.00504]
[1758533714449,0.4855112,112460.0,112450.0,0.00544]
[1758533714650,0.4855112,112460.0,112450.0,0.02723]
[1758533716051,0.1115112,112460.0,112450.0,0.4900092]
[1758533716749,0.1104687,112470.0,112460.0,0.1237613]
[1758533717752,0.1236687,112470.0,112460.0,0.02179]
[1758533717944,0.1236713,112460.0,112450.0,0.39616]
[1758533718145,0.1236713,112460.0,112450.0,0.38303]
[1758533718452,0.1236713,112460.0,112450.0,0.02223]
[1758533719151,0.1236713,112460.0,112450.0,0.02415]
[1758533719549,0.1236713,112460.0,112450.0,0.1129992]
[1758533719754,0.1236713,112460.0,112450.0,0.4879292]
[1758533719942,0.1236713,112460.0,112450.0,0.5879292]
[1758533719943,0.1104713,112460.0,112450.0,0.5879292]
[1758533720343,0.1104713,112460.0,112450.0,0.2271292]
[1758533720547,0.1104713,112460.0,112450.0,0.5879292]
[1758533720755,0.1104713,112460.0,112450.0,0.4879292]
[1758533721348,0.4628334,112470.0,112460.0,0.03492]
[1758533721349,0.1236678,112470.0,112460.0,0.03492]
[1758533722250,0.1236678,112470.0,112460.0,0.02179]
[1758533723459,0.1256678,112470.0,112460.0,0.02179]
[1758533724158,0.03683,112470.0,112460.0,0.4843013]
[1758533724353,0.02363,112470.0,112460.0,0.4843013]
[1758533724861,0.1124634,112470.0,112460.0,0.39546]
[1758533725357,0.1253234,112470.0,112450.0,0.01363]
[1758533725558,0.91311375,112460.0,112450.0,0.0005]
[1758533725858,0.91311375,112460.0,112450.0,0.0004]
[1758533726049,0.1235446,112440.0,112430.0,0.0008]
[1758533726246,0.03468,112430.0,112420.0,0.50386129]
[1758533726659,0.03368,112430.0,112420.0,2.00386129]
[1758533726859,0.1225452,112430.0,112420.0,2.00386129]
[1758533727060,0.1215452,112430.0,112420.0,2.00386129]
[1758533727361,0.03268,112430.0,112420.0,2.00386129]
[1758533727560,0.01982,112430.0,112420.0,2.00386129]
[1758533727760,0.01982,112430.0,112420.0,2.01486129]
[1758533728561,0.02082,112430.0,112420.0,2.02086129]
[1758533729764,0.1255451,112430.0,112420.0,2.00986129]
[1758533730564,0.03568,112430.0,112420.0,2.00386129]
[1758533730966,0.03568,112430.0,112420.0,2.00390129]